Cogmind - Beta 12 @@@ ROGUE MODE // 2023.08.17 @ 18:23:16 Player: Waste Result: Destroyed by B-75 Beast with Heavy Machine Gun Performance ------------- Evolutions (2) 1000 Regions Visited (6) 1200 Robots Destroyed (54) 270 Value Destroyed (1887) 1887 Prototype IDs (28) 560 Alien Tech Used (0) 0 Bonus (500) 500 TOTAL SCORE: 5417 Bonus ------- Entered Garrisons 200 Aligned with FarCom 300 Cogmind --------- Core Integrity 0/550 Matter 231/300 Energy 100/100 System Corruption 5% Temperature Cool (12) Movement Core (50) Location -8/Garrison Parts ------- > --- POWER (1) -------- (None) > --- PROPULSION (3) --- (None) > --- UTILITY (3) ------ (None) > --- WEAPON (4) ------- (None) > --- INVENTORY (5) ---- Light Nuclear Core Advanced Treads Improved Heat Sink Improved Signal Interpreter Shock Bomb Launcher Peak State ------------ > --- POWER ------------ Light Angular Momentum Engine > --- PROPULSION ------- Light Treads Light Treads Light Treads > --- UTILITY ---------- Improved Heat Sink Advanced Heat Sink Medium Storage Unit > --- WEAPON ----------- Field Laser Pulse Rifle Minigun Gauss Rifle > --- INVENTORY -------- Improved Ion Engine Light Nuclear Core Light Treads Light Treads Advanced Treads Improved Heat Sink Improved Signal Interpreter Improved Terrain Scanner 0b10 Alert Chip Shock Bomb Launcher [Rating: 32] Favorites ----------- Power Light Angular Momentum Engine Engine Light Angular Momentum Engine Propulsion Light Treads Treads Light Treads Utility Medium Storage Unit Device Advanced Heat Sink Storage Medium Storage Unit Protection Light Armor Plating Weapon Heavy Assault Rifle Energy Gun Beam Rifle Ballistic Gun Heavy Assault Rifle Launcher Shock Bomb Launcher Build | -11 -10 -10 -10 -9 -8 -8 ------- Run | Jun Mat Min Exi Min Mat Gar Slots Evolved 4 | . . . . . 4 . Power . | . . . . . . . Propulsion 1 | . . . . . 1 . Utility 1 | . . . . . 1 . Weapon 2 | . . . . . 2 . Parts Attached 44 | 7 11 7 . . 12 7 Power 7 | 1 2 1 . . 2 1 Engine 7 | 1 2 1 . . 2 1 Core . | . . . . . . . Reactor . | . . . . . . . Propulsion 12 | 2 4 3 . . 2 1 Treads 12 | 2 4 3 . . 2 1 Leg . | . . . . . . . Wheel . | . . . . . . . Hover . | . . . . . . . Flight . | . . . . . . . Utility 9 | 2 2 1 . . 4 . Device 4 | 1 . . . . 3 . Storage 2 | 1 1 . . . . . Processor . | . . . . . . . Hackware . | . . . . . . . Protection 3 | . 1 1 . . 1 . Artifact . | . . . . . . . Weapon 16 | 2 3 2 . . 4 5 Energy Gun 7 | . 3 1 . . 3 . Energy Cannon . | . . . . . . . Ballistic Gun 8 | 2 . 1 . . 1 4 Ballistic Cannon . | . . . . . . . Launcher 1 | . . . . . . 1 Special Weapon . | . . . . . . . Impact Weapon . | . . . . . . . Slashing Weapon . | . . . . . . . Piercing Weapon . | . . . . . . . Special Melee Weapon . | . . . . . . . Unidentified Prototypes . | . . . . . . . Parts Lost 15 | . 1 . . . 1 13 Power 2 | . . . . . . 2 Propulsion 4 | . . . . . . 4 Utility 2 | . . . . . 1 1 Weapon 7 | . 1 . . . . 6 Highest Loss Streak 12 | . 1 . . . 1 12 To Critical Strikes . | . . . . . . . Average Slot Usage (%) 97 | . 99 100 100 100 97 90 Engine 11 | . 14 14 14 14 9 7 Treads 26 | . 28 28 28 28 27 24 Device 10 | . 12 . . . 10 16 Storage 11 | . 14 14 14 14 9 8 Protection 5 | . 1 14 14 14 4 . Energy Gun 15 | . 11 14 14 14 18 15 Ballistic Gun 16 | . 16 14 14 14 17 16 Naked Turns 25 | . . . . . . 25 Heaviest Build 35 | 11 22 26 26 26 35 34 Greatest Support 60 | 40 40 40 40 40 60 60 Greatest Overweight (x) 3 | 3 . . . . . 1 Average Overweight (x) . | . . . . . . . Largest Inventory Capacity 10 | 8 10 10 10 10 10 10 Average Capacity 9 | 7 9 10 10 10 10 9 Most Carried 10 | 7 10 10 10 10 10 10 Average Carried 9 | 4 9 9 9 10 9 9 Final Capacity 10 | 8 10 10 10 10 10 5 Final Carried 10 | 7 10 10 10 10 10 5 Class Distribution -------------------- 38% | Scavenger-Skirmisher 31% | Scavenger-Mutant 26% | Mutant 3% | Scavenger-Tank Dominant Class ---------------- Mutant | -10/Materials Scavenger-Mutant | -10/Mines Scavenger-Mutant | -10/Exiles Scavenger-Mutant | -9/Mines Scavenger-Skirmisher | -8/Materials Scavenger-Skirmisher | -8/Garrison Resources | -11 -10 -10 -10 -9 -8 -8 ----------- Run | Jun Mat Min Exi Min Mat Gar Matter Collected 1204 | 286 172 108 . . 387 251 Remotely . | . . . . . . . Salvage Created 1788 | 116 523 111 . . 838 200 Parts 115 | 5 43 12 . . 42 13 Haulers Intercepted 2 | . 1 . . . 1 . Recyclers Shooed 3 | . 1 . . . 2 . Parts Field Recycled . | . . . . . . . Retrieved Matter . | . . . . . . . Parts Self-Destructed . | . . . . . . . Prevented . | . . . . . . . Kills | -11 -10 -10 -10 -9 -8 -8 ------- Run | Jun Mat Min Exi Min Mat Gar Combat Hostiles Destroyed 42 | . 15 2 . . 18 7 Guns 42 | . 15 2 . . 18 7 Classes Destroyed 12 | 2 5 1 . . 3 1 Worker 2 | . . . . . 2 . Builder 1 | . . . . . 1 . Tunneler 3 | 3 . . . . . . Hauler 2 | . 1 . . . 1 . Recycler 1 | 1 . . . . . . Operator 1 | . 1 . . . . . Watcher 2 | . 1 . . . 1 . Swarmer 14 | . 6 . . . 4 4 Grunt 24 | . 9 . . . 13 2 Duelist 1 | . . . . . 1 . Sentry 2 | . . 2 . . . . Hunter 1 | . . . . . . 1 Best Kill Streak 4 | 2 3 2 . . 4 4 Combat Bots Only 4 | . 3 2 . . 4 4 Max Kills in Single Turn 2 | 1 1 1 . . 2 1 Gunslinging 1 | . . . . . 1 . Exploded . | . . . . . . . Melee . | . . . . . . . Uniques/NPCs Destroyed . | . . . . . . . Combat | -11 -10 -10 -10 -9 -8 -8 -------- Run | Jun Mat Min Exi Min Mat Gar Damage Taken 2865 | . 618 148 . . 529 1570 Core 722 | . 133 32 . . . 557 Absorbed by Shields . | . . . . . . . Core Remaining (%) 67 | 100 . . . 34 . . Volleys Fired 164 | 11 52 7 . . 38 56 Largest 4 | 2 2 2 . . 4 4 Hottest 179 | 40 85 60 . . 174 179 Shots Fired 419 | 22 104 14 . . 152 127 Gun 418 | 22 104 14 . . 152 126 Cannon . | . . . . . . . Launcher 1 | . . . . . . 1 Special . | . . . . . . . Kinetic 260 | 22 65 7 . . 76 90 Thermal 158 | . 39 7 . . 76 36 Explosive . | . . . . . . . Electromagnetic 1 | . . . . . . 1 Robot Hit Streak 21 | 8 20 11 . . 13 21 Robot Miss Streak 5 | 1 4 1 . . 5 2 Penetration Max . | . . . . . . . Secondary Targets 4 | . 1 . . . 3 . Max Gunslinging Chain 1 | . 1 . . . 1 . Shots Hit Robots 252 | 17 68 11 . . 94 62 Core Hits 110 | 8 37 5 . . 42 18 Critical Kills 1 | . 1 . . . . . Critical Parts Destroyed 1 | . . . . . . 1 Critical Strikes 12 | . 2 . . . 5 5 Burn 9 | . 1 . . . 5 3 Destroy 3 | . 1 . . . . 2 Melee Attacks . | . . . . . . . Impact . | . . . . . . . Slashing . | . . . . . . . Piercing . | . . . . . . . Sneak Attacks . | . . . . . . . Combat Hostiles . | . . . . . . . Follow-up Attacks . | . . . . . . . Damage Inflicted 3815 | 134 763 100 . . 1610 1208 Guns 3698 | 134 754 100 . . 1594 1116 Cannons . | . . . . . . . Explosions 15 | . . . . . . 15 Melee . | . . . . . . . Ramming 102 | . 9 . . . 16 77 Kinetic 1985 | 134 351 45 . . 685 770 Thermal 1713 | . 403 55 . . 909 346 Explosive . | . . . . . . . Electromagnetic 15 | . . . . . . 15 Impact . | . . . . . . . Slashing . | . . . . . . . Piercing . | . . . . . . . Highest Corruption 5 | . 1 1 1 1 4 5 Average Corruption 2 | . 1 1 1 1 3 4 Corruption Purged . | . . . . . . . Corruption Blocked . | . . . . . . . Effects 35 | . 5 2 1 1 5 21 Message Errors 8 | . 1 . . . . 7 Matter Fused 10 | . 2 2 . 1 1 4 Heat Flow Errors 5 | . 1 . . . 1 3 Energy Discharges 4 | . . . . . 2 2 Data Loss (minor) 5 | . 1 . 1 . . 3 Data Loss (major) 1 | . . . . . 1 . Weapon Failures 2 | . . . . . . 2 Overload Shots . | . . . . . . . Overflow Damage . | . . . . . . . Projectiles . | . . . . . . . Explosions . | . . . . . . . Melee . | . . . . . . . Knockbacks . | . . . . . . . Impact . | . . . . . . . Kinetic . | . . . . . . . Secondary . | . . . . . . . Self-Inflicted Damage 47 | . . . . . . 47 Shots 1 | . . . . . . 1 Rammed 26 | . 4 . . . 3 19 Targets Rammed 28 | . 4 . . . 5 19 Kicked . | . . . . . . . Crushed 2 | . . . . . 2 . Highest Temperature 536 | . 256 124 . . 536 243 Average Temperature 90 | . 81 59 . . 123 38 Received Heat Transfer 840 | . 222 45 . . 252 321 Effects 1 | . . . . . 1 . Short Circuit 1 | . . . . . 1 . Siege Activations . | . . . . . . . Robots Corrupted . | . . . . . . . Combat Hostiles . | . . . . . . . Parts Fried . | . . . . . . . Impact Corruptions . | . . . . . . . Robots Melted . | . . . . . . . Combat Hostiles . | . . . . . . . Parts Melted 4 | . 1 . . . 3 . Heat Transferred 4591 | . 988 125 . . 2516 962 Parts Sabotaged . | . . . . . . . Parts Stolen . | . . . . . . . Parts Stripped . | . . . . . . . Power Chain Reactions . | . . . . . . . Missiles Intercepted . | . . . . . . . Alert | -11 -10 -10 -10 -9 -8 -8 ------- Run | Jun Mat Min Exi Min Mat Gar Peak Influence 468 | 20 288 138 . . 254 468 Initial 165 | . 13 76 . . . 165 Average 176 | 7 129 118 . . 146 358 Maximum Alert Level 2 | . 1 . . . 1 2 Low Security (%) 59 | 100 75 100 . 100 60 7 Level 1 32 | . 24 . . . 39 57 Level 2 7 | . . . . . . 34 Level 3 . | . . . . . . . Level 4 . | . . . . . . . Level 5 . | . . . . . . . High Security . | . . . . . . . Max Security . | . . . . . . . Squads Dispatched 6 | . 4 . . . 2 . Investigation 3 | . 2 . . . 1 . Extermination . | . . . . . . . Reinforcement 2 | . 2 . . . . . Assault . | . . . . . . . Garrison 1 | . . . . . 1 . Intercept . | . . . . . . . Searches Triggered . | . . . . . . . Construction Impeded . | . . . . . . . Haulers Reinforced . | . . . . . . . Active Scanning Responses . | . . . . . . . Cargo Convoy Interrupts . | . . . . . . . Stealth | -11 -10 -10 -10 -9 -8 -8 --------- Run | Jun Mat Min Exi Min Mat Gar Distress Signals 4 | . 2 . . . 2 . Communications Jammed . | . . . . . . . Distress Signals . | . . . . . . . Times Spotted 58 | . 23 2 . . 27 6 Peak Tracking Total 5 | . 5 2 . . 4 4 Tactical Retreats 1 | . . . . . 1 . Traps | -11 -10 -10 -10 -9 -8 -8 ------- Run | Jun Mat Min Exi Min Mat Gar Traps Triggered 6 | . 3 . . . 3 . Indirectly . | . . . . . . . Trap Hack Attempts . | . . . . . . . Triggered . | . . . . . . . Disarmed . | . . . . . . . Reprogrammed . | . . . . . . . Reused . | . . . . . . . Traps Extracted . | . . . . . . . Installed . | . . . . . . . Triggered . | . . . . . . . Machines | -11 -10 -10 -10 -9 -8 -8 ---------- Run | Jun Mat Min Exi Min Mat Gar Machines Disabled 5 | . . . . . 1 4 Max in Single Turn 1 | . . . . . 1 1 Garrison Relay 2 | . . . . . . 2 Machines Repaired . | . . . . . . . Machines Sabotaged . | . . . . . . . Overloaded Fab Kills . | . . . . . . . Hacking | -11 -10 -10 -10 -9 -8 -8 --------- Run | Jun Mat Min Exi Min Mat Gar Machines Accessed 19 | . 4 1 1 1 9 3 Terminals 15 | . 3 1 . 1 7 3 Fabricators . | . . . . . . . Repair Stations . | . . . . . . . Recycling Units 2 | . 1 . . . 1 . Scanalyzers . | . . . . . . . Garrison Access 1 | . . . . . 1 . Total Hacks 47 | . 13 1 1 1 24 7 Successful 28 | . 8 1 1 1 14 3 Failed 18 | . 5 . . . 9 4 Catastrophic 1 | . . . . . . 1 Database Lockouts 1 | . . . . . 1 . Manual 36 | . 13 . 1 . 19 3 Terminals 42 | . 12 1 . 1 21 7 Fabricators . | . . . . . . . Repair Stations . | . . . . . . . Recycling Units 3 | . 1 . . . 2 . Scanalyzers . | . . . . . . . Garrison Access 1 | . . . . . 1 . Terminal Hacks 16 | . 4 1 1 1 6 3 Part Schematic 2 | . 1 . . . 1 . Robot Analysis 2 | . 2 . . . . . Prototype ID Bank 2 | . . . . . 2 . Emergency Access Points 1 | . . . . . . 1 Alert Level 1 | . . . . 1 . . Unreport Threat 2 | . 1 . . . 1 . Patrol Status 1 | . . 1 . . . . Zone Layout 2 | . . . . . 2 . Garrison Registry 1 | . . . . . . 1 Patrol Navigation 1 | . . . . . . 1 EX-Prototype ID Bank 1 | . . . 1 . . . Fabricator Hacks . | . . . . . . . Repair Station Hacks . | . . . . . . . Recycling Unit Hacks . | . . . . . . . Scanalyzer . | . . . . . . . Garrison Access Hacks 1 | . . . . . 1 . Unlock Access 1 | . . . . . 1 . Unauthorized Hacks 11 | . 4 . . . 7 . Terminals 9 | . 3 . . . 6 . Track 1 | . . . . . 1 . Botnet 7 | . 3 . . . 4 . Disrupt 1 | . . . . . 1 . Fabricators . | . . . . . . . Repair Stations . | . . . . . . . Recycling Units 2 | . 1 . . . 1 . Tunnel 2 | . 1 . . . 1 . Scanalyzers . | . . . . . . . Garrison Access . | . . . . . . . Data Cores Recovered 1 | . 1 . . . . . Used . | . . . . . . . Hacking Detections 12 | . 3 . . . 6 3 Full Trace Events 1 | . . . . . 1 . Feedback Events . | . . . . . . . Feedback Blocked . | . . . . . . . Robot Schematics Acquired . | . . . . . . . Robots Built . | . . . . . . . Authchips . | . . . . . . . Time . | . . . . . . . Total Robot Build Rating . | . . . . . . . Part Schematics Acquired 2 | . 1 . . . 1 . Parts Built . | . . . . . . . Authchips . | . . . . . . . Time . | . . . . . . . Total Part Build Rating . | . . . . . . . Parts Repaired . | . . . . . . . Time . | . . . . . . . Parts Recycled . | . . . . . . . Recycled Matter . | . . . . . . . Retrieved Matter . | . . . . . . . Retrieved Components . | . . . . . . . Parts Scanalyzed . | . . . . . . . Part Schematics Acquired . | . . . . . . . Parts Damaged . | . . . . . . . Bothacking | -11 -10 -10 -10 -9 -8 -8 ------------ Run | Jun Mat Min Exi Min Mat Gar Used RIF Installer . | . . . . . . . Robots Hacked . | . . . . . . . Non-combat . | . . . . . . . Combat . | . . . . . . . Robot Hacks Applied . | . . . . . . . Relay Couplers Released 8 | . . . . . . 8 Machine Destruction 8 | . . . . . . 8 Fabnet Peak Effective % . | . . . . . . . Robots Rewired . | . . . . . . . Allies Hacked . | . . . . . . . Hacks Repelled . | . . . . . . . Allies | -11 -10 -10 -10 -9 -8 -8 -------- Run | Jun Mat Min Exi Min Mat Gar Total Allies . | . . . . . . . Largest Group . | . . . . . . . Highest-Rated Group . | . . . . . . . Highest-Rated Ally . | . . . . . . . Total Orders . | . . . . . . . Ally Attacks . | . . . . . . . Total Damage . | . . . . . . . Kills . | . . . . . . . Allies Corrupted . | . . . . . . . Allies Melted . | . . . . . . . Intel | -11 -10 -10 -10 -9 -8 -8 ------- Run | Jun Mat Min Exi Min Mat Gar Robot Analysis Total 2 | . 2 . . . . . Derelict Logs Recovered . | . . . . . . . Drone Launches . | . . . . . . . Drone Recoveries . | . . . . . . . Exploration | -11 -10 -10 -10 -9 -8 -8 ------------- Run | Jun Mat Min Exi Min Mat Gar Turns Passed 3740 | 177 919 371 354 74 1073 772 Spaces Moved 1906 | 84 440 207 221 47 530 377 Core 26 | 10 . . . . . 16 Treads 1880 | 74 440 207 221 47 530 361 Legs . | . . . . . . . Wheels . | . . . . . . . Hover . | . . . . . . . Flight . | . . . . . . . Fastest Speed 50 | 50 160 160 160 160 160 50 Average Speed 158 | 149 160 160 160 160 160 155 Slowest Speed 200 | 200 160 160 160 160 160 160 Overloaded Moves . | . . . . . . . Propulsion Burnouts . | . . . . . . . Robots Hopped . | . . . . . . . Cave-ins Triggered . | . . . . . . . Exploration Rate (%) 39 | 7 76 35 61 18 38 43 Regions Visited 6 Branch Regions 3 Pre-discovered Areas 2 | . 1 . . . 1 . Known Exits Taken 1 | . . . . . 1 . Unknown Exits Taken 5 | 1 1 1 1 1 . . Scrap Searched . | . . . . . . . Spaces Dug . | . . . . . . . Terrain Destroyed 1 | . . . . . . 1 Melee . | . . . . . . . Projectile 1 | . . . . . . 1 AOE . | . . . . . . . Terrain Rammed . | . . . . . . . Walls Destroyed . | . . . . . . . Machines Disabled . | . . . . . . . Actions | -11 -10 -10 -10 -9 -8 -8 --------- Run | Jun Mat Min Exi Min Mat Gar Total 2322 | 114 565 240 222 46 668 467 Wait 133 | 6 45 5 . . 71 6 Move 1900 | 83 439 206 220 46 529 377 Hop . | . . . . . . . Pick Up 22 | 7 5 4 1 . 5 . Fast Attach 17 | 7 4 . . . 3 3 Attach 8 | . 1 . . . 4 3 Detach 1 | . . . . . . 1 Swap 19 | . 6 7 . . 5 1 Drop 30 | . 9 11 1 . 8 1 Fire 164 | 11 52 7 . . 38 56 Melee . | . . . . . . . Ram 19 | . . . . . . 19 Kick . | . . . . . . . Crush 9 | . 4 . . . 5 . Escape Stasis . | . . . . . . . Rewire . | . . . . . . . Trap . | . . . . . . . Miscellaneous . | . . . . . . . Route ------- -11/Junkyard -10/Materials (discovered 4 exits: [*Mat x2] / *Min x2) -10/Mines (discovered 2 exits: [*Mat] / *Exi) -10/Exiles (discovered 2 exits: *Min x2) -9/Mines -8/Materials -8/Garrison (discovered 3 exits: [*Mat x3]) History --------- Turn | Location | Event 29 | -11/Junkyard | Discovered new exit (range 14) 178 | -11/Junkyard | Entered Materials 312 | -10/Materials | Build established: Mutant 342 | -10/Materials | Discovered new exit (range 4) 474 | -10/Materials | Discovered new exit (range 12) 798 | -10/Materials | Discovered new exit (range 3) 909 | -10/Materials | Core integrity fell below 50% 983 | -10/Materials | Build established: Scavenger-Mutant 1081 | -10/Materials | Discovered new exit (range 7) 1097 | -10/Materials | Entered Mines 1174 | -10/Mines | Discovered new exit (range 10) 1460 | -10/Mines | Deemed a non-threat by the Exiles lab entrance 1462 | -10/Mines | Discovered new exit (range 5) 1468 | -10/Mines | Entered Exiles 1492 | -10/Exiles | Discovered new exit (range 15) 1512 | -10/Exiles | Met 8R-AWN 1536 | -10/Exiles | Met EX-HEX 1584 | -10/Exiles | Met EX-BIN 1601 | -10/Exiles | Aligned with FarCom system 1603 | -10/Exiles | Given EX-Vault access code 1640 | -10/Exiles | Opened EX-Vault 1650 | -10/Exiles | Found 0b10 Alert Chip 1683 | -10/Exiles | Warned to stay clear of 0b10 Research branches 1728 | -10/Exiles | Met EX-DEC 1803 | -10/Exiles | Discovered new exit (range 12) 1822 | -10/Exiles | Left Exiles lab with 0b10 Alert Chip 1822 | -10/Exiles | Entered Mines 1875 | -9/Mines | Discovered new exit (range 8) 1896 | -9/Mines | Entered Materials 1896 | -8/Materials | Evolved 4 slots: Propulsion x1, Utility x1, Weapon x2 2191 | -8/Materials | Central database locked down 2318 | -8/Materials | Build established: Scavenger-Skirmisher 2651 | -8/Materials | Garrison activated, responded to threat 2761 | -8/Materials | Identified exit to Garrison 2969 | -8/Materials | Entered Garrison 3069 | -8/Garrison | Garrison Relay disabled 3098 | -8/Garrison | Triggered checkpoint 3201 | -8/Garrison | Triggered checkpoint 3300 | -8/Garrison | Discovered new exit (range 13) 3348 | -8/Garrison | Triggered checkpoint 3400 | -8/Garrison | Garrison Relay disabled 3496 | -8/Garrison | Discovered new exit (range 84) 3496 | -8/Garrison | Discovered new exit (range 22) 3496 | -8/Garrison | Discovered new exit (range 72) 3641 | -8/Garrison | Spotted B-75 Beast 3679 | -8/Garrison | Released all parts (2) 3729 | -8/Garrison | Core integrity fell below 50% 3736 | -8/Garrison | Core integrity fell below 20% 3741 | -8/Garrison | Destroyed by B-75 Beast with Heavy Machine Gun Last Messages --------------- 03679_ Released Med. Storage Unit. 03680_ Acquired 2 matter. 03682_ Acquired Assault Rifle. 03685_ Acquired Hvy. Assault Rifle. 03703_ System corrupted: Energy discharge (-28). 03708_ Hvy. Assault Rifle destroyed. 03708_ System corrupted: Assault Rifle jammed. 03719_ Assault Rifle destroyed. 03721_ Slammed into B-75 Beast. 03727_ Destabilizing: System corrupted (+1). 03728_ Slammed into B-75 Beast. 03728_ Destabilizing: Core damaged (-27). 03729_ Slammed into B-75 Beast. 03729_ Destabilizing: Core damaged (-22). 03729_ Knocked back. 03731_ Slammed into B-75 Beast. 03734_ T>Q W6S#XLS<,NOY5&HA>>10=E91ZDHXN0 PMIG 03734_ Slammed into B-75 Beast. 03735_ Knocked back. 03736_ Slammed into B-75 Beast. Map ----- +----------------------------------------------------+ | ?????????????????????????????????????????????????? | | ?????????????????????????????????????????????????? | | ?????????????????????????????????????????????????? | | ?????????????????????????????????????????????????? | | ?????????????????????????????????????????????????? | | ?????????????????????????????????????????????????? | | ?????????????????????????????????????????????????? | | ?????????????????????????????????????????????????? | | ??????????????????????#######????????????????????? | | ??????????????????????# #????????????????????? | | ??????????????????????# ########?????????????? | | ??????????????????????# ## """"#?????????????? | | ??????????????????????### #??????????#### | | ????????????????????????# ## """"#??????????#""# | | ????????????????????????# ########??????????#T # | | ????????????????????????# #?????????????????#" # | | ????????????????????????# #?????????????????## # | | ????????????????????????# #??????????????????# # | | ??????????############??# #??????????????????# # | | ??????????#""""""""""#??# #??????????????????# # | | ??????????#"""]*=!^]"##?# #??????????????????# | | ??????????#"" #?# % #??????????????????# # | | ??????????#"] ###########!!%#??????????????????# # | | ??????????#"^! BB=! ##?????????????????# # | | ??????????#"= BB ! ;#?????????????????# # | | ??????????#"! ###########@ %#??????????????????# # | | ??????????#"" #?# #??????????????????# # | | ??????????#"""!!!![]"##?# #??????????????????# # | | ########??#""""""""""#??# #??????????????????# # | | " "&&" #??############??#% #??????????????????# # | | " "&& #????????????????# = #??????????????????# # | | " """" ################## %############??????##+# | | ^ + #??????# | | # ^^ ! + #??????# | | ^ # ####!!!##### ## #### #### #?????## # | | # #?#""! "#??# ## #??# #??# #?????#T # | | # #?#######??##+### #??# #??# #?????## + | | ^ #???????????# #?#^^^#??# #??# #??????# # | | " """" ##???????????# #?# #??# #??# ######## # | | " "&&" #?????######## #?# #??# #??# ## %[=## # | | " "&&" #?????### ### ### ####+####++## * *## # | | ########?????## ## + =* | | ?????????????# ###### [ | | ?????????????# # | | ?????????????# # ################# ## ## | | ?????????????#######?????????????### ## ## | | ?????????????????????????????????# " | | ?????????????????????????????????# " | | ?????????????????????????????????# " | | ?????????????????????????????????# " | +----------------------------------------------------+ Best States ------------- Heat Dissipation 64 Energy Generation 18 Energy Capacity 265 Matter Stores 300 Matter Capacity 300 Sight Range 16 Terrain Scan Density 10 Armor Coverage 300 Evasion (%) 50 Recoil Reduction 3 Item Schematics ----------------- Hcp. Storage Unit | -10/Materials | Hacked Lrn. Tractor Beam | -8/Materials | Hacked Robot Schematics ------------------ None Fabricated ------------ Nothing Alien Tech Used ----------------- None Achievements -------------- None Challenges ------------ None Game ------ Seed AdvancedFactoryArchive Manual? 0 Play Time 00:22:57 Cumulative 211.5 hours Start 2023.08.17 @ 18:04:45 End 2023.08.17 @ 18:23:16 Sessions 1 Manual Loads 0 Difficulty Rogue Special Mode None Game No. 250 Rogue 250 Adventurer 0 Explorer 0 Win Type - Total 5 Types 3/0/0/1/0/0/1/0/0 Lore% 71 Gallery% 78 Achievement% 63 Wizard Run 0 Options --------- ASCII 0 Keyboard 0 Movement Numpad Keybinds 0 Fullscreen 1 Font 18/SmallcapsGlow Map View 76x50 Tactical HUD 1 Map Filters NONE Filters NONE Steam 1 RUN: e19ebd5b-7cd1-4dd2-849e-108fb6e5d9e9